[Event "December 12 Early 2023"]
[Site "https://www.chess.com"]
[Date "2023.12.12"]
[Round "6"]
[White "Adla, Diego"]
[Black "Grutter, Tim"]
[Result "1-0"]
[Board "69"]
[TimeControl "180+1"]
[WhiteFideId "100072"]
[BlackFideId "1057472"]
[WhiteElo "2664"]
[BlackElo "2520"]
[WhiteTeam "ARG"]
[BlackTeam "NED"]
[WhiteClock "0:00:21"]
[BlackClock "0:00:02"]

1. c4 {[%clk 0:02:53]}  e5 {[%clk 0:02:53]} 2. Nc3 {[%clk 0:02:53]}  d6 {[%clk 0:02:51]} 3. d4 {[%clk 0:02:52]}  Nc6 {[%clk 0:02:49]} 4. dxe5 {[%clk 0:02:50]}  dxe5 {[%clk 0:02:48]} 5. Qxd8+ {[%clk 0:02:47]}  Nxd8 {[%clk 0:02:49]} 6. g3 {[%clk 0:02:42]}  Bb4 {[%clk 0:02:48]} 7. Bd2 {[%clk 0:02:40]}  c6 {[%clk 0:02:48]} 8. a3 {[%clk 0:02:32]}  Be7 {[%clk 0:02:45]} 9. Bg2 {[%clk 0:02:32]}  a5 {[%clk 0:02:45]} 10. Nf3 {[%clk 0:02:27]}  Bd6 {[%clk 0:02:41]} 11. O-O {[%clk 0:02:22]}  Ne7 {[%clk 0:02:35]} 12. b4 {[%clk 0:02:11]}  Be6 {[%clk 0:02:24]} 13. c5 {[%clk 0:02:08]}  Bc7 {[%clk 0:02:23]} 14. b5 {[%clk 0:02:07]}  Bc4 {[%clk 0:02:12]} 15. Rab1 {[%clk 0:01:59]}  Ne6 {[%clk 0:02:08]} 16. Rfc1 {[%clk 0:01:55]}  O-O-O {[%clk 0:01:59]} 17. Be1 {[%clk 0:01:47]}  Nd4 {[%clk 0:01:33]} 18. bxc6 {[%clk 0:01:39]}  bxc6 {[%clk 0:01:26]} 19. Nxd4 {[%clk 0:01:39]}  exd4 {[%clk 0:01:25]} 20. Ne4 {[%clk 0:01:39]}  Bxe2 {[%clk 0:01:20]} 21. Bd2 {[%clk 0:01:32]}  Bd3 {[%clk 0:01:06]} 22. Nd6+ {[%clk 0:01:11]}  Bxd6 {[%clk 0:00:59]} 23. cxd6 {[%clk 0:01:12]}  Rxd6 {[%clk 0:00:51]} 24. Rb6 {[%clk 0:01:11]}  a4 {[%clk 0:00:35]} 25. Bf4 {[%clk 0:01:06]}  Rdd8 {[%clk 0:00:23]} 26. Rb8+ {[%clk 0:00:37]}  Kd7 {[%clk 0:00:23]} 27. Rb7+ {[%clk 0:00:37]}  Ke6 {[%clk 0:00:11]} 28. Re1+ {[%clk 0:00:37]}  Kf6 {[%clk 0:00:11]} 29. Rexe7 {[%clk 0:00:38]}  Bc4 {[%clk 0:00:05]} 30. Be5+ {[%clk 0:00:37]}  Kg6 {[%clk 0:00:02]} 31. Be4+ {[%clk 0:00:36]}  Kh6 {[%clk 0:00:03]} 32. Rbc7 {[%clk 0:00:33]}  Bd5 {[%clk 0:00:01]} 33. Bxd5 {[%clk 0:00:32]}  Rxd5 {[%clk 0:00:02]} 34. Rxc6+ {[%clk 0:00:31]}  f6 {[%clk 0:00:02]} 35. Bf4+ {[%clk 0:00:29]}  Kg6 {[%clk 0:00:02]} 36. Rc2 {[%clk 0:00:25]}  d3 {[%clk 0:00:02]} 37. Rd2 {[%clk 0:00:26]}  Rc8 {[%clk 0:00:03]} 38. Ra7 {[%clk 0:00:25]}  Rc4 {[%clk 0:00:03]} 39. Be3 {[%clk 0:00:25]}  Kf5 {[%clk 0:00:01]} 40. Kg2 {[%clk 0:00:25]}  Ke4 {[%clk 0:00:02]} 41. Rxg7 {[%clk 0:00:25]}  Rc2 {[%clk 0:00:01]} 42. Re7+ {[%clk 0:00:24]}  Kf5 {[%clk 0:00:01]} 43. Rxc2 {[%clk 0:00:21]}  dxc2 {[%clk 0:00:02]} 1-0

[Event "December 12 Early 2023"]
[Site "https://www.chess.com"]
[Date "2023.12.12"]
[Round "6"]
[White "Seemann, Jakub"]
[Black "Reprintsev, Alexander"]
[Result "0-1"]
[Board "70"]
[TimeControl "180+1"]
[WhiteFideId "21874697"]
[BlackFideId "14100541"]
[WhiteElo "2653"]
[BlackElo "2509"]
[WhiteTeam "POL"]
[BlackTeam "UKR"]
[WhiteClock "0:00:02"]
[BlackClock "0:00:06"]

1. Nf3 {[%clk 0:03:00]}  d5 {[%clk 0:02:57]} 2. g3 {[%clk 0:03:01]}  Nc6 {[%clk 0:02:57]} 3. Bg2 {[%clk 0:02:59]}  e5 {[%clk 0:02:56]} 4. O-O {[%clk 0:03:00]}  Bf5 {[%clk 0:02:50]} 5. c4 {[%clk 0:02:59]}  d4 {[%clk 0:02:45]} 6. d3 {[%clk 0:02:58]}  Qd7 {[%clk 0:02:43]} 7. a3 {[%clk 0:02:54]}  a5 {[%clk 0:02:43]} 8. e3 {[%clk 0:02:53]}  dxe3 {[%clk 0:02:42]} 9. Bxe3 {[%clk 0:02:53]}  Bxd3 {[%clk 0:02:38]} 10. Re1 {[%clk 0:02:50]}  Bxc4 {[%clk 0:02:37]} 11. Qc1 {[%clk 0:02:49]}  Be6 {[%clk 0:02:27]} 12. Nc3 {[%clk 0:02:48]}  Nf6 {[%clk 0:02:24]} 13. Bg5 {[%clk 0:02:47]}  Bd6 {[%clk 0:02:21]} 14. Bxf6 {[%clk 0:02:45]}  gxf6 {[%clk 0:02:21]} 15. Ne4 {[%clk 0:02:45]}  Qe7 {[%clk 0:02:18]} 16. Nh4 {[%clk 0:02:33]}  Nd4 {[%clk 0:02:13]} 17. Qh6 {[%clk 0:02:29]}  O-O-O {[%clk 0:02:06]} 18. Rac1 {[%clk 0:02:29]}  Kb8 {[%clk 0:02:05]} 19. Nxf6 {[%clk 0:02:27]}  c6 {[%clk 0:01:51]} 20. Ne4 {[%clk 0:02:20]}  Bc7 {[%clk 0:01:51]} 21. Nc5 {[%clk 0:02:18]}  f6 {[%clk 0:01:35]} 22. b4 {[%clk 0:02:17]}  axb4 {[%clk 0:01:34]} 23. axb4 {[%clk 0:02:18]}  Bd5 {[%clk 0:01:32]} 24. Bxd5 {[%clk 0:02:18]}  Rxd5 {[%clk 0:01:31]} 25. Qe3 {[%clk 0:02:17]}  Rhd8 {[%clk 0:01:30]} 26. Qa3 {[%clk 0:02:16]}  Bb6 {[%clk 0:01:29]} 27. Ne4 {[%clk 0:02:04]}  f5 {[%clk 0:01:25]} 28. Nc3 {[%clk 0:02:04]}  R5d7 {[%clk 0:01:13]} 29. Na4 {[%clk 0:02:03]}  Nb5 {[%clk 0:01:06]} 30. Qa1 {[%clk 0:01:48]}  Bd4 {[%clk 0:01:00]} 31. Qa2 {[%clk 0:01:46]}  f4 {[%clk 0:01:00]} 32. Nc5 {[%clk 0:01:39]}  Bxc5 {[%clk 0:00:56]} 33. bxc5 {[%clk 0:01:39]}  fxg3 {[%clk 0:00:56]} 34. hxg3 {[%clk 0:01:39]}  Rd5 {[%clk 0:00:55]} 35. Nf5 {[%clk 0:01:35]}  Qf8 {[%clk 0:00:53]} 36. Qc2 {[%clk 0:01:17]}  Nd4 {[%clk 0:00:52]} 37. Nxd4 {[%clk 0:01:17]}  exd4 {[%clk 0:00:52]} 38. Qxh7 {[%clk 0:01:09]}  Rxc5 {[%clk 0:00:49]} 39. Rb1 {[%clk 0:01:05]}  Rb5 {[%clk 0:00:39]} 40. Ra1 {[%clk 0:00:51]}  Rb2 {[%clk 0:00:33]} 41. Rf1 {[%clk 0:00:37]}  Qd6 {[%clk 0:00:31]} 42. Qd3 {[%clk 0:00:33]}  Rb5 {[%clk 0:00:24]} 43. Rab1 {[%clk 0:00:31]}  Rxb1 {[%clk 0:00:23]} 44. Rxb1 {[%clk 0:00:32]}  Qd5 {[%clk 0:00:21]} 45. Qh7 {[%clk 0:00:21]}  b5 {[%clk 0:00:19]} 46. Ra1 {[%clk 0:00:20]}  Rd7 {[%clk 0:00:19]} 47. Qh8+ {[%clk 0:00:19]}  Kc7 {[%clk 0:00:19]} 48. Ra7+ {[%clk 0:00:15]}  Kb6 {[%clk 0:00:19]} 49. Qb8+ {[%clk 0:00:14]}  Kc5 {[%clk 0:00:19]} 50. Qf8+ {[%clk 0:00:11]}  Rd6 {[%clk 0:00:17]} 51. Ra1 {[%clk 0:00:07]}  d3 {[%clk 0:00:17]} 52. Rc1+ {[%clk 0:00:07]}  Kb4 {[%clk 0:00:15]} 53. Qf4+ {[%clk 0:00:06]}  Qd4 {[%clk 0:00:15]} 54. Qd2+ {[%clk 0:00:07]}  Ka4 {[%clk 0:00:09]} 55. Rb1 {[%clk 0:00:08]}  b4 {[%clk 0:00:08]} 56. Qa2+ {[%clk 0:00:06]}  Kb5 {[%clk 0:00:09]} 57. Ra1 {[%clk 0:00:07]}  Qxa1+ {[%clk 0:00:07]} 58. Qxa1 {[%clk 0:00:07]}  d2 {[%clk 0:00:07]} 59. Qd1 {[%clk 0:00:08]}  c5 {[%clk 0:00:07]} 60. Kf1 {[%clk 0:00:09]}  c4 {[%clk 0:00:07]} 61. Ke2 {[%clk 0:00:05]}  c3 {[%clk 0:00:07]} 62. f4 {[%clk 0:00:05]}  Kc4 {[%clk 0:00:07]} 63. Ke3 {[%clk 0:00:04]}  b3 {[%clk 0:00:07]} 64. Qf1+ {[%clk 0:00:05]}  Kb4 {[%clk 0:00:07]} 65. Qd1 {[%clk 0:00:04]}  c2 {[%clk 0:00:06]} 66. Qh5 {[%clk 0:00:01]}  d1=Q {[%clk 0:00:05]} 67. Qf5 {[%clk 0:00:01]}  Qd2+ {[%clk 0:00:05]} 68. Kf3 {[%clk 0:00:02]}  Qd3+ {[%clk 0:00:05]} 69. Qxd3 {[%clk 0:00:02]}  Rxd3+ {[%clk 0:00:06]} 0-1

[Event "December 12 Early 2023"]
[Site "https://www.chess.com"]
[Date "2023.12.12"]
[Round "6"]
[White "Agibileg, Uurtsaikh"]
[Black "Azali, Tannaz"]
[Result "1-0"]
[Board "71"]
[TimeControl "180+1"]
[WhiteFideId "4901606"]
[BlackFideId "12537721"]
[WhiteElo "2650"]
[BlackElo "2506"]
[WhiteTeam "MGL"]
[BlackTeam "IRI"]
[WhiteClock "0:01:57"]
[BlackClock "0:01:09"]

1. d4 {[%clk 0:02:59]}  Nf6 {[%clk 0:02:59]} 2. c4 {[%clk 0:02:59]}  e6 {[%clk 0:03:00]} 3. Nc3 {[%clk 0:02:59]}  Bb4 {[%clk 0:02:57]} 4. a3 {[%clk 0:02:59]}  Bxc3+ {[%clk 0:02:56]} 5. bxc3 {[%clk 0:03:00]}  O-O {[%clk 0:02:56]} 6. f3 {[%clk 0:03:01]}  d5 {[%clk 0:02:55]} 7. cxd5 {[%clk 0:03:01]}  exd5 {[%clk 0:02:56]} 8. e3 {[%clk 0:03:01]}  b6 {[%clk 0:02:56]} 9. Bd3 {[%clk 0:03:02]}  Ba6 {[%clk 0:02:56]} 10. Ne2 {[%clk 0:03:02]}  c5 {[%clk 0:02:55]} 11. O-O {[%clk 0:03:02]}  Bxd3 {[%clk 0:02:55]} 12. Qxd3 {[%clk 0:03:03]}  Nc6 {[%clk 0:02:56]} 13. Ng3 {[%clk 0:03:03]}  Re8 {[%clk 0:02:56]} 14. Bb2 {[%clk 0:03:04]}  h5 {[%clk 0:02:56]} 15. Rae1 {[%clk 0:03:00]}  h4 {[%clk 0:02:45]} 16. Nf5 {[%clk 0:03:00]}  h3 {[%clk 0:02:39]} 17. Ng3 {[%clk 0:03:00]}  Qd7 {[%clk 0:02:34]} 18. e4 {[%clk 0:02:55]}  dxe4 {[%clk 0:02:28]} 19. fxe4 {[%clk 0:02:55]}  cxd4 {[%clk 0:02:28]} 20. cxd4 {[%clk 0:02:43]}  Rad8 {[%clk 0:02:27]} 21. Rxf6 {[%clk 0:02:41]}  gxf6 {[%clk 0:02:26]} 22. Nh5 {[%clk 0:02:36]}  Qd6 {[%clk 0:02:12]} 23. Rf1 {[%clk 0:02:29]}  hxg2 {[%clk 0:02:02]} 24. Rxf6 {[%clk 0:02:25]}  Qc7 {[%clk 0:01:42]} 25. d5 {[%clk 0:02:19]}  Kf8 {[%clk 0:01:22]} 26. Qc2 {[%clk 0:02:02]}  Qe7 {[%clk 0:01:15]} 27. Rh6 {[%clk 0:01:58]}  Qc5+ {[%clk 0:01:14]} 28. Qxc5+ {[%clk 0:01:58]}  bxc5 {[%clk 0:01:15]} 29. Bf6 {[%clk 0:01:58]}  Ne7 {[%clk 0:01:09]} 30. Bg7+ {[%clk 0:01:57]} 1-0

[Event "December 12 Early 2023"]
[Site "https://www.chess.com"]
[Date "2023.12.12"]
[Round "6"]
[White "Koellner, Ruben Gideon"]
[Black "Iljin, Timofey"]
[Result "1-0"]
[Board "72"]
[TimeControl "180+1"]
[WhiteFideId "12993093"]
[BlackFideId "14110180"]
[WhiteElo "2647"]
[BlackElo "2505"]
[WhiteTeam "GER"]
[BlackTeam "UKR"]
[WhiteClock "0:00:08"]
[BlackClock "0:00:03"]

1. d4 {[%clk 0:03:00]}  Nf6 {[%clk 0:03:00]} 2. Nf3 {[%clk 0:02:55]}  c5 {[%clk 0:02:59]} 3. e3 {[%clk 0:02:56]}  g6 {[%clk 0:02:57]} 4. Nbd2 {[%clk 0:02:55]}  Bg7 {[%clk 0:02:56]} 5. dxc5 {[%clk 0:02:56]}  O-O {[%clk 0:02:54]} 6. a3 {[%clk 0:02:54]}  a5 {[%clk 0:02:51]} 7. Rb1 {[%clk 0:02:54]}  a4 {[%clk 0:02:48]} 8. b4 {[%clk 0:02:46]}  axb3 {[%clk 0:02:48]} 9. cxb3 {[%clk 0:02:46]}  d6 {[%clk 0:02:44]} 10. cxd6 {[%clk 0:02:46]}  Qxd6 {[%clk 0:02:45]} 11. Bb2 {[%clk 0:02:45]}  Bf5 {[%clk 0:02:43]} 12. Rc1 {[%clk 0:02:44]}  Nc6 {[%clk 0:02:42]} 13. Nc4 {[%clk 0:02:41]}  Qe6 {[%clk 0:02:32]} 14. Ng5 {[%clk 0:02:31]}  Qd7 {[%clk 0:02:14]} 15. Qxd7 {[%clk 0:02:20]}  Nxd7 {[%clk 0:02:15]} 16. Bxg7 {[%clk 0:02:20]}  Kxg7 {[%clk 0:02:15]} 17. e4 {[%clk 0:02:21]}  Bg4 {[%clk 0:01:53]} 18. h3 {[%clk 0:02:18]}  h6 {[%clk 0:01:35]} 19. hxg4 {[%clk 0:02:17]}  hxg5 {[%clk 0:01:35]} 20. a4 {[%clk 0:01:56]}  Nd4 {[%clk 0:01:34]} 21. Rc3 {[%clk 0:01:55]}  Nc5 {[%clk 0:01:19]} 22. Nb6 {[%clk 0:01:54]}  Nxe4 {[%clk 0:00:38]} 23. Rch3 {[%clk 0:01:29]}  Rad8 {[%clk 0:00:32]} 24. Rh7+ {[%clk 0:01:28]}  Kf6 {[%clk 0:00:31]} 25. Bc4 {[%clk 0:01:26]}  Nc2+ {[%clk 0:00:28]} 26. Ke2 {[%clk 0:01:25]}  Rd2+ {[%clk 0:00:20]} 27. Kf3 {[%clk 0:01:17]}  Ke5 {[%clk 0:00:18]} 28. Rf1 {[%clk 0:00:49]}  Nd4+ {[%clk 0:00:18]} 29. Ke3 {[%clk 0:00:49]}  Nc2+ {[%clk 0:00:17]} 30. Kf3 {[%clk 0:00:50]}  f5 {[%clk 0:00:06]} 31. Rxe7+ {[%clk 0:00:43]}  Kd6 {[%clk 0:00:03]} 32. Re6+ {[%clk 0:00:34]}  Kc5 {[%clk 0:00:03]} 33. gxf5 {[%clk 0:00:25]}  gxf5 {[%clk 0:00:03]} 34. b4+ {[%clk 0:00:17]}  Kxb4 {[%clk 0:00:02]} 35. Rb1+ {[%clk 0:00:17]}  Kc3 {[%clk 0:00:02]} 36. Rb3+ {[%clk 0:00:16]}  Kd4 {[%clk 0:00:02]} 37. Be2 {[%clk 0:00:02]}  g4+ {[%clk 0:00:03]} 38. Kf4 {[%clk 0:00:02]}  Rxe2 {[%clk 0:00:03]} 39. f3 {[%clk 0:00:03]}  gxf3 {[%clk 0:00:03]} 40. gxf3 {[%clk 0:00:04]}  Nc5 {[%clk 0:00:04]} 41. Rxe2 {[%clk 0:00:03]}  Nxb3 {[%clk 0:00:02]} 42. Rxc2 {[%clk 0:00:03]}  Na1 {[%clk 0:00:01]} 43. Rb2 {[%clk 0:00:03]}  Rd8 {[%clk 0:00:01]} 44. Rd2+ {[%clk 0:00:03]}  Kc5 {[%clk 0:00:02]} 45. Rxd8 {[%clk 0:00:04]}  Kxb6 {[%clk 0:00:02]} 46. Rd2 {[%clk 0:00:04]}  Nb3 {[%clk 0:00:03]} 47. Rb2 {[%clk 0:00:05]}  Ka5 {[%clk 0:00:03]} 48. Rxb3 {[%clk 0:00:05]}  b5 {[%clk 0:00:04]} 49. Rxb5+ {[%clk 0:00:06]}  Kxa4 {[%clk 0:00:04]} 50. Rxf5 {[%clk 0:00:07]}  Ka3 {[%clk 0:00:05]} 51. Re5 {[%clk 0:00:08]}  Kb4 {[%clk 0:00:03]} 52. Kf5 {[%clk 0:00:08]} 1-0

[Event "December 12 Early 2023"]
[Site "https://www.chess.com"]
[Date "2023.12.12"]
[Round "6"]
[White "Omelja, Artem"]
[Black "Berezin, Viktor"]
[Result "1/2-1/2"]
[Board "73"]
[TimeControl "180+1"]
[WhiteFideId "14119846"]
[BlackFideId "14107872"]
[WhiteElo "2642"]
[BlackElo "2500"]
[WhiteTeam "UKR"]
[BlackTeam "UKR"]
[WhiteClock "0:00:02"]
[BlackClock "0:00:40"]

1. d4 {[%clk 0:03:00]}  Nf6 {[%clk 0:03:00]} 2. c4 {[%clk 0:02:57]}  g6 {[%clk 0:03:00]} 3. Nc3 {[%clk 0:02:57]}  Bg7 {[%clk 0:03:01]} 4. e4 {[%clk 0:02:57]}  O-O {[%clk 0:03:01]} 5. f3 {[%clk 0:02:57]}  d6 {[%clk 0:03:02]} 6. Nge2 {[%clk 0:02:58]}  a6 {[%clk 0:02:57]} 7. Be3 {[%clk 0:02:55]}  c6 {[%clk 0:02:56]} 8. c5 {[%clk 0:02:55]}  Nbd7 {[%clk 0:02:53]} 9. Nf4 {[%clk 0:02:33]}  e5 {[%clk 0:02:37]} 10. dxe5 {[%clk 0:02:31]}  dxe5 {[%clk 0:02:36]} 11. Nd3 {[%clk 0:02:31]}  Ne8 {[%clk 0:02:33]} 12. Be2 {[%clk 0:02:22]}  Nc7 {[%clk 0:02:33]} 13. O-O {[%clk 0:02:20]}  Ne6 {[%clk 0:02:33]} 14. b4 {[%clk 0:02:19]}  Nd4 {[%clk 0:02:33]} 15. Re1 {[%clk 0:02:06]}  Qe7 {[%clk 0:02:33]} 16. Bf1 {[%clk 0:02:04]}  Rd8 {[%clk 0:02:33]} 17. Bxd4 {[%clk 0:01:33]}  exd4 {[%clk 0:02:31]} 18. Na4 {[%clk 0:01:32]}  Rb8 {[%clk 0:02:26]} 19. Nab2 {[%clk 0:01:16]}  Ne5 {[%clk 0:02:26]} 20. Nxe5 {[%clk 0:01:11]}  Bxe5 {[%clk 0:02:27]} 21. Nc4 {[%clk 0:01:05]}  Bc7 {[%clk 0:02:27]} 22. Bd3 {[%clk 0:01:02]}  Qh4 {[%clk 0:02:19]} 23. e5 {[%clk 0:01:01]}  Be6 {[%clk 0:02:10]} 24. Nd6 {[%clk 0:00:59]}  f6 {[%clk 0:01:58]} 25. Qe2 {[%clk 0:00:37]}  f5 {[%clk 0:01:47]} 26. Bc4 {[%clk 0:00:35]}  Qe7 {[%clk 0:01:44]} 27. Rad1 {[%clk 0:00:32]}  b5 {[%clk 0:01:31]} 28. Bxe6+ {[%clk 0:00:26]}  Qxe6 {[%clk 0:01:32]} 29. Rxd4 {[%clk 0:00:25]}  a5 {[%clk 0:01:32]} 30. a3 {[%clk 0:00:24]}  axb4 {[%clk 0:01:32]} 31. axb4 {[%clk 0:00:24]}  Ra8 {[%clk 0:01:32]} 32. f4 {[%clk 0:00:17]}  Ra3 {[%clk 0:01:26]} 33. Red1 {[%clk 0:00:11]}  Rda8 {[%clk 0:01:26]} 34. Qf2 {[%clk 0:00:05]}  Ra2 {[%clk 0:01:24]} 35. Qf3 {[%clk 0:00:06]}  Rc2 {[%clk 0:00:57]} 36. Qxc6 {[%clk 0:00:03]}  Raa2 {[%clk 0:00:57]} 37. g3 {[%clk 0:00:02]}  Rxh2 {[%clk 0:00:57]} 38. Qf3 {[%clk 0:00:02]}  Kg7 {[%clk 0:00:45]} 39. Nxb5 {[%clk 0:00:02]}  Qb3 {[%clk 0:00:40]} 40. Rd7+ {[%clk 0:00:02]}  Kh6 {[%clk 0:00:40]} 41. Qxb3 {[%clk 0:00:01]}  Rag2+ {[%clk 0:00:38]} 42. Kf1 {[%clk 0:00:02]}  Rf2+ {[%clk 0:00:39]} 43. Ke1 {[%clk 0:00:02]}  Re2+ {[%clk 0:00:39]} 44. Kf1 {[%clk 0:00:03]}  Ref2+ {[%clk 0:00:40]} 45. Kg1 {[%clk 0:00:03]}  Rfg2+ {[%clk 0:00:39]} 46. Kf1 {[%clk 0:00:02]}  Rf2+ {[%clk 0:00:40]} 1/2-1/2

[Event "December 12 Early 2023"]
[Site "https://www.chess.com"]
[Date "2023.12.12"]
[Round "6"]
[White "Boyer, Mahel"]
[Black "Senft, Sean"]
[Result "0-1"]
[Board "74"]
[TimeControl "180+1"]
[WhiteFideId "45102422"]
[BlackFideId "2044960"]
[WhiteElo "2641"]
[BlackElo "2484"]
[WhiteTeam "FRA"]
[BlackTeam "USA"]
[WhiteClock "0:00:11"]
[BlackClock "0:01:13"]

1. e4 {[%clk 0:02:53]}  c5 {[%clk 0:02:57]} 2. d4 {[%clk 0:02:48]}  cxd4 {[%clk 0:02:56]} 3. Qxd4 {[%clk 0:02:49]}  Nc6 {[%clk 0:02:51]} 4. Qd3 {[%clk 0:02:48]}  d6 {[%clk 0:02:39]} 5. Nf3 {[%clk 0:02:46]}  Nf6 {[%clk 0:02:39]} 6. Nc3 {[%clk 0:02:45]}  a6 {[%clk 0:02:37]} 7. Be2 {[%clk 0:02:45]}  e6 {[%clk 0:02:36]} 8. O-O {[%clk 0:02:45]}  Be7 {[%clk 0:02:37]} 9. Rd1 {[%clk 0:02:43]}  Qc7 {[%clk 0:02:35]} 10. Bf4 {[%clk 0:02:42]}  O-O {[%clk 0:02:33]} 11. Bxd6 {[%clk 0:02:41]}  Bxd6 {[%clk 0:02:31]} 12. Qxd6 {[%clk 0:02:42]}  Qb6 {[%clk 0:02:15]} 13. b3 {[%clk 0:01:22]}  Rd8 {[%clk 0:01:50]} 14. Qf4 {[%clk 0:00:47]}  Bd7 {[%clk 0:01:49]} 15. e5 {[%clk 0:00:39]}  Ne8 {[%clk 0:01:46]} 16. Ng5 {[%clk 0:00:28]}  f6 {[%clk 0:01:36]} 17. exf6 {[%clk 0:00:28]}  Nxf6 {[%clk 0:01:36]} 18. Bc4 {[%clk 0:00:25]}  Re8 {[%clk 0:01:31]} 19. Rxd7 {[%clk 0:00:24]}  Nxd7 {[%clk 0:01:23]} 20. Qf7+ {[%clk 0:00:05]}  Kh8 {[%clk 0:01:24]} 21. Qxd7 {[%clk 0:00:06]}  Ne5 {[%clk 0:01:19]} 22. Nf7+ {[%clk 0:00:03]}  Nxf7 {[%clk 0:01:19]} 23. Qxf7 {[%clk 0:00:04]}  Rf8 {[%clk 0:01:20]} 24. Qh5 {[%clk 0:00:02]}  Qxf2+ {[%clk 0:01:21]} 25. Kh1 {[%clk 0:00:02]}  Qf6 {[%clk 0:01:21]} 26. Bd3 {[%clk 0:00:02]}  g6 {[%clk 0:01:20]} 27. Qa5 {[%clk 0:00:02]}  b6 {[%clk 0:01:19]} 28. Qb4 {[%clk 0:00:02]}  a5 {[%clk 0:01:19]} 29. Qxb6 {[%clk 0:00:01]}  Qxc3 {[%clk 0:01:18]} 30. Rd1 {[%clk 0:00:02]}  Qf6 {[%clk 0:01:17]} 31. h3 {[%clk 0:00:02]}  Rad8 {[%clk 0:01:17]} 32. Qxa5 {[%clk 0:00:02]}  Ra8 {[%clk 0:01:17]} 33. Qc5 {[%clk 0:00:02]}  Rxa2 {[%clk 0:01:18]} 34. Re1 {[%clk 0:00:02]}  Ra1 {[%clk 0:01:18]} 35. Rxa1 {[%clk 0:00:01]}  Qxa1+ {[%clk 0:01:19]} 36. Kh2 {[%clk 0:00:01]}  Qf6 {[%clk 0:01:20]} 37. Qd6 {[%clk 0:00:01]}  e5 {[%clk 0:01:20]} 38. Qxf6+ {[%clk 0:00:01]}  Rxf6 {[%clk 0:01:21]} 39. Kg3 {[%clk 0:00:01]}  Rb6 {[%clk 0:01:21]} 40. Kf3 {[%clk 0:00:01]}  Kg7 {[%clk 0:01:22]} 41. Ke4 {[%clk 0:00:01]}  Kf6 {[%clk 0:01:23]} 42. Kd5 {[%clk 0:00:02]}  Rb8 {[%clk 0:01:19]} 43. Kc5 {[%clk 0:00:02]}  Re8 {[%clk 0:01:19]} 44. Be4 {[%clk 0:00:02]}  Rd8 {[%clk 0:01:20]} 45. c4 {[%clk 0:00:02]}  Rd4 {[%clk 0:01:20]} 46. Bd5 {[%clk 0:00:02]}  Kf5 {[%clk 0:01:17]} 47. b4 {[%clk 0:00:02]}  Rd2 {[%clk 0:01:11]} 48. b5 {[%clk 0:00:02]}  e4 {[%clk 0:01:12]} 49. b6 {[%clk 0:00:02]}  e3 {[%clk 0:01:12]} 50. b7 {[%clk 0:00:02]}  Rb2 {[%clk 0:01:12]} 51. Kc6 {[%clk 0:00:01]}  e2 {[%clk 0:01:08]} 52. g4+ {[%clk 0:00:02]}  Ke5 {[%clk 0:01:07]} 53. Kc7 {[%clk 0:00:02]}  e1=Q {[%clk 0:01:07]} 54. b8=Q {[%clk 0:00:02]}  Rxb8 {[%clk 0:01:08]} 55. Kxb8 {[%clk 0:00:03]}  Kd6 {[%clk 0:01:08]} 56. Kb7 {[%clk 0:00:03]}  h6 {[%clk 0:01:08]} 57. Ka6 {[%clk 0:00:04]}  Kc5 {[%clk 0:01:08]} 58. Kb7 {[%clk 0:00:04]}  g5 {[%clk 0:01:09]} 59. Kc7 {[%clk 0:00:05]}  Qc3 {[%clk 0:01:09]} 60. Kd7 {[%clk 0:00:06]}  Qxh3 {[%clk 0:01:10]} 61. Be6 {[%clk 0:00:06]}  h5 {[%clk 0:01:09]} 62. gxh5 {[%clk 0:00:07]}  Qxh5 {[%clk 0:01:10]} 63. Ke7 {[%clk 0:00:08]}  g4 {[%clk 0:01:11]} 64. Kf6 {[%clk 0:00:08]}  g3 {[%clk 0:01:11]} 65. Bd5 {[%clk 0:00:09]}  Qxd5 {[%clk 0:01:10]} 66. cxd5 {[%clk 0:00:10]}  Kxd5 {[%clk 0:01:11]} 67. Kf5 {[%clk 0:00:10]}  g2 {[%clk 0:01:12]} 68. Kf4 {[%clk 0:00:11]}  g1=Q {[%clk 0:01:12]} 69. Kf3 {[%clk 0:00:11]}  Qd4 {[%clk 0:01:13]} 0-1

[Event "December 12 Early 2023"]
[Site "https://www.chess.com"]
[Date "2023.12.12"]
[Round "6"]
[White "DHLT216"]
[Black "Kotyk, Michael"]
[Result "1-0"]
[Board "75"]
[TimeControl "180+1"]
[BlackFideId "16214501"]
[WhiteElo "2639"]
[BlackElo "2475"]
[BlackTeam "GER"]
[WhiteClock "0:01:23"]
[BlackClock "0:00:25"]

1. d4 {[%clk 0:03:00]}  Nf6 {[%clk 0:02:59]} 2. c4 {[%clk 0:03:00]}  g6 {[%clk 0:02:57]} 3. Nf3 {[%clk 0:03:00]}  Bg7 {[%clk 0:02:58]} 4. g3 {[%clk 0:03:00]}  O-O {[%clk 0:02:58]} 5. Bg2 {[%clk 0:03:00]}  d6 {[%clk 0:02:59]} 6. O-O {[%clk 0:03:00]}  Nc6 {[%clk 0:03:00]} 7. Nc3 {[%clk 0:02:58]}  e5 {[%clk 0:03:00]} 8. d5 {[%clk 0:02:55]}  Nb8 {[%clk 0:02:59]} 9. e4 {[%clk 0:02:47]}  a5 {[%clk 0:02:59]} 10. h3 {[%clk 0:02:46]}  Na6 {[%clk 0:02:58]} 11. Be3 {[%clk 0:02:39]}  Nd7 {[%clk 0:02:52]} 12. b3 {[%clk 0:02:34]}  f5 {[%clk 0:02:33]} 13. Ng5 {[%clk 0:02:23]}  Ndc5 {[%clk 0:02:19]} 14. exf5 {[%clk 0:02:23]}  gxf5 {[%clk 0:02:19]} 15. Qh5 {[%clk 0:02:20]}  h6 {[%clk 0:02:14]} 16. Ne6 {[%clk 0:02:19]}  Nxe6 {[%clk 0:01:37]} 17. dxe6 {[%clk 0:02:20]}  f4 {[%clk 0:01:37]} 18. Nd5 {[%clk 0:02:04]}  Bxe6 {[%clk 0:01:36]} 19. gxf4 {[%clk 0:02:04]}  exf4 {[%clk 0:01:36]} 20. Nxf4 {[%clk 0:02:04]}  Bf7 {[%clk 0:01:29]} 21. Qg4 {[%clk 0:02:01]}  Rb8 {[%clk 0:01:21]} 22. Rad1 {[%clk 0:01:55]}  Qg5 {[%clk 0:01:20]} 23. Qxg5 {[%clk 0:01:50]}  hxg5 {[%clk 0:01:20]} 24. Nd5 {[%clk 0:01:50]}  Bh6 {[%clk 0:00:43]} 25. Nf6+ {[%clk 0:01:47]}  Kg7 {[%clk 0:00:40]} 26. Nd7 {[%clk 0:01:47]}  Bh5 {[%clk 0:00:40]} 27. Bd4+ {[%clk 0:01:42]}  Kg6 {[%clk 0:00:40]} 28. Be4+ {[%clk 0:01:34]}  Kf7 {[%clk 0:00:39]} 29. Rde1 {[%clk 0:01:33]}  c5 {[%clk 0:00:27]} 30. Bd5+ {[%clk 0:01:30]}  Kg6 {[%clk 0:00:26]} 31. Re6+ {[%clk 0:01:23]}  Kf5 {[%clk 0:00:25]} 1-0